[Event "Mitropa Cup Women 2022"]
[Site "Corte"]
[Date "2022.05.07"]
[Round "8.6"]
[White "Bashylina, Luisa"]
[Black "Heinatz, Gundula"]
[Result "0-1"]
[ECO "D17"]
[WhiteElo "1981"]
[BlackElo "2117"]
[Annotator "TA"]
[PlyCount "120"]
[EventDate "2022.04.30"]
[EventType "team-tourn"]
[EventCountry "FRA"]
[SourceTitle "playchess.com"]
[Source "ChessBase"]
[SourceQuality "1"]
[WhiteTeam "Germany"]
[BlackTeam "Switzerland"]
[WhiteTeamCountry "GER"]
[BlackTeamCountry "SUI"]
[TimeControl "40/5400+30:1800+30"]

{[%evp 21,120,17,15,-37,-39,-72,-72,-60,-54,-55,-60,-80,-41,-58,-20,-11,0,-14,-8,-28,-28,-33,-34,-83,-73,-91,-80,-74,-78,-89,-93,-94,-91,-95,-106,-199,-149,-184,-156,-169,-97,-147,-145,-182,-170,-430,-429,-416,-222,-214,-149,-148,-154,-291,-182,-172,-184,-268,-221,-208,-193,-198,-77,-328,-321,-458,-321,-353,-320,-290,-289,-339,-340,-329,-272,-339,-146,-146,-85,-332,-307,-277,-277,-269,-269,-1362,-1211,-912,-738,-1416,-985,-5531,-4245,-29968,-12068,-29976,-29977,-29977,-29978,-4641,-4627]} 1. d4 {[%emt 0:00:02]} d5 {[%emt 0:00:08]} 2. c4 {[%emt 0:00:04]} c6 {[%emt 0:00:06]} 3. Nf3 {[%emt 0:00:03]} Nf6 {[%emt 0:00:07]} 4. Nc3 {[%emt 0:00:03]} dxc4 {[%emt 0:00:10]} 5. a4 {[%emt 0:00:04]} Bf5 {[%emt 0:00:18]} 6. Ne5 {[%emt 0:00:04]} Nbd7 {[%emt 0:00:51]} 7. Nxc4 {[%emt 0:00:19]} Qc7 {[%emt 0:01:06]} 8. g3 {[%emt 0:00:18]} e5 {[%emt 0:01:31]} 9. dxe5 {[%emt 0:00:10]} Nxe5 {[%emt 0:00:12]} 10. Bf4 {[%emt 0:00:09]} Nfd7 {[%emt 0:00:20]} 11. Bg2 {[%emt 0:00:10]} f6 {[%emt 0:05:10]} 12. Rc1 {[%emt 0:10:47] D17: Slav Defence: 5 a4 Bf5: Lines with 6 Nh4 and 6 Ne5.} (12. O-O $11) 12... Rd8 $15 {[%emt 0:14:42]} 13. Nxe5 {[%emt 0:14:32]} Nxe5 {[%emt 0:04:51]} (13... fxe5 14. Bg5 $11) 14. Qb3 {[%emt 0:04:59] Black is better.} Qf7 {[%emt 0:01:57]} 15. Qxf7+ {[%emt 0:01:05]} Kxf7 {[%emt 0:03:34]} 16. O-O {[%emt 0:03:39] [#]} Be7 $146 {[%emt 0:08:25]} ({Predecessor:} 16... g5 17. Bxe5 fxe5 18. Ne4 Bxe4 19. Bxe4 Rd4 20. Bc2 Bd6 21. e3 Rd2 22. Rfd1 Rxd1+ 23. Rxd1 {1-0 (55) Koksal,E (2328)-Galunova,T (2151) Sunny Beach 2015}) 17. Be3 {[%emt 0:08:29]} a6 {[%emt 0:02:31]} 18. Ne4 {[%emt 0:12:15]} h5 {[%emt 0:06:42]} 19. h3 {[%emt 0:03:43]} Rhe8 {[%emt 0:05:17][%cal Bh8e8,Be8d8,Bd8d2,Bd2c2][%mdl 32]} 20. f4 {[%emt 0:08:52]} Nd7 {[%emt 0:02:21][%cal Be5d7,Bd7c5,Bc5b3][%mdl 32]} 21. Bf2 {[%emt 0:04:55]} Bf8 {[%emt 0:02:43]} 22. Nc3 {[%emt 0:01:45]} (22. Rc4 $15) 22... Nc5 $17 {[%emt 0:02:46]} 23. Rfd1 {[%emt 0:05:15] Inhibits Rd2.} Nb3 {[%emt 0:05:01]} 24. Rxd8 {[%emt 0:00:49]} Rxd8 {[%emt 0:00:12]} 25. Re1 {[%emt 0:06:37]} Rd2 {[%emt 0:07:16]} 26. e4 {[%emt 0:00:05]} Be6 {[%emt 0:01:05]} 27. f5 {[%emt 0:00:57]} Bc4 {[%emt 0:02:17]} 28. Nd1 {[%emt 0:01:28]} (28. Rd1 $17) 28... Nc5 {[%emt 0:04:34]} (28... Bb4 $19 29. Bf3 h4 30. Bh5+ Kf8) 29. Be3 {[%emt 0:02:01]} Rc2 {[%emt 0:01:30]} 30. Bf3 {[%emt 0:01:48]} g6 {[%emt 0:02:51]} (30... Nxa4 $19 {...Bb4 is the strong threat.} 31. Bxh5+ Kg8) 31. fxg6+ {[%emt 0:00:24]} ({White should play} 31. h4) 31... Kxg6 {[%emt 0:00:08]} 32. Bd4 {[%emt 0:02:33]} Nd3 {[%emt 0:06:32]} ({Not} 32... Nxa4 33. Ne3 Rd2 34. Rd1 Rxd1+ 35. Bxd1 $15) 33. Re2 {[%emt 0:00:28]} (33. Rf1 {was the only chance.} Ne5 34. Ne3 Bxf1 35. Nxc2 Bxh3 36. Be2) 33... Rc1 $19 {[%emt 0:00:30]} 34. Rd2 {[%emt 0:00:28]} Bb4 {[%emt 0:01:00]} (34... Bh6 $142 35. Rxd3 Bxd3) 35. Bc3 {[%emt 0:00:18]} Bc5+ {[%emt 0:02:11]} 36. Kh2 {[%emt 0:01:26]} b5 {[%emt 0:02:57] Black is more active.} 37. Be2 {[%emt 0:04:06]} (37. b3 $2 Ne1 $1 38. Be2 (38. Bxh5+ $2 Kxh5 39. g4+ Kg6 $19) 38... Bxe2 39. Rxe2 Nf3+ 40. Kg2 Rxd1 $19) (37. e5 $17 {might work better.} Nxe5 38. Bxe5 fxe5 39. Bxc6) 37... Ne5 {[%emt 0:01:46]} 38. Bxe5 {[%emt 0:01:15]} fxe5 {[%emt 0:00:25]} 39. Nc3 {[%emt 0:02:44]} (39. Bxc4 {was necessary.} Rxc4 40. axb5 cxb5 41. Re2) 39... Bxe2 {[%emt 0:01:06]} 40. Nxe2 {[%emt 0:00:47][%mdl 4096] Endgame KRB-KRN} Rc4 {[%emt 0:00:21]} 41. axb5 {[%emt 0:03:53]} axb5 {[%emt 0:00:21]} (41... cxb5 $19 {aiming for ...a5.} 42. Kh1 Rxe4) 42. Nc3 $2 {[%emt 0:08:19][%mdl 8192]} (42. Kg2 $17 {was the only defense.}) 42... b4 $1 {[%emt 0:07:17]} 43. Nd1 {[%emt 0:06:35]} (43. Na4 $142 Bd4 44. b3) 43... Bd4 {[%emt 0:00:31] Strongly threatening ...b3.} 44. Kg2 {[%emt 0:03:10]} Rc1 {[%emt 0:01:37] White must now prevent ...b3.} 45. Kf3 {[%emt 0:01:36]} c5 {[%emt 0:00:36]} 46. b3 {[%emt 0:01:40]} c4 {[%emt 0:01:25]} 47. bxc4 {[%emt 0:00:14]} Rxc4 {[%emt 0:00:12]} 48. Ke2 {[%emt 0:01:27]} Rc1 {[%emt 0:07:25]} (48... b3 $19 {[%cal Oh5h4] is more deadly. Hoping for ...h4!} 49. Kd3 Rc1) 49. Rd3 $17 {[%emt 0:04:22]} Rb1 {[%emt 0:03:33]} (49... Rc2+ $142 50. Ke1 Rg2) 50. Ne3 $2 {[%emt 0:01:27] [#]} (50. Kd2 $17) 50... b3 $1 $19 {[%emt 0:02:21]} 51. Nc4 {[%emt 0:00:24] [#]} b2 $1 {[%emt 0:01:28][%cal Ob1e1]} ({Wrong is} 51... Rc1 $2 52. Nxe5+ Bxe5 53. Rxb3 $19) 52. Rb3 {[%emt 0:00:27]} Rh1 {[%emt 0:01:02]} 53. Nd2 {[%emt 0:01:07] Against b1Q} (53. Nxb2 Rh2+ 54. Kf1 Bxb2 55. Kg1) 53... Rxh3 {[%emt 0:00:40] And now ...Rh1 would win.} 54. Rb8 {[%emt 0:00:54]} Rh1 {[%emt 0:00:42] Threatens to win with ...Rc1.} 55. Kd3 {[%emt 0:00:59]} Rc1 {[%emt 0:01:11]} 56. Rb3 {[%emt 0:00:10]} Kg5 {[%emt 0:00:42]} 57. Nf3+ {[%emt 0:00:15]} Kg4 {[%emt 0:00:36]} 58. Nxd4 {[%emt 0:01:33]} b1=Q+ {[%emt 0:00:13]} 59. Rxb1 {[%emt 0:00:02]} Rxb1 {[%emt 0:00:11]} 60. Nf5 {[%emt 0:00:38]} Re1 {[%emt 0:01:00] Weighted Error Value: White=0.98/Black=0.28 (precise)} 0-1

[Event "Mitropa Cup Women 2022"]
[Site "Corte"]
[Date "2022.05.07"]
[Round "8.7"]
[White "Sedina, Elena"]
[Black "Janzelj, Lara"]
[Result "0-1"]
[ECO "C50"]
[WhiteElo "2249"]
[BlackElo "2191"]
[Annotator "TA"]
[PlyCount "82"]
[EventDate "2022.04.30"]
[EventType "team-tourn"]
[EventCountry "FRA"]
[SourceTitle "playchess.com"]
[Source "ChessBase"]
[SourceQuality "1"]
[WhiteTeam "Italy"]
[BlackTeam "Slovenia"]
[WhiteTeamCountry "ITA"]
[BlackTeamCountry "SLO"]
[TimeControl "40/5400+30:1800+30"]

{[%evp 13,82,29,26,12,16,0,0,10,31,27,29,20,25,27,30,25,33,23,33,32,33,33,33,33,33,33,33,33,33,33,22,2,22,0,0,29,16,-17,0,0,0,0,0,-10,66,0,-10,-10,0,0,0,-20,410,-4,0,0,38,40,49,17,23,-421,-427,-627,-613,-730,-716,-29986,-29985,-29989,-29990]} 1. e4 {[%emt 0:00:05]} e5 {[%emt 0:00:07]} 2. Nf3 {[%emt 0:00:11]} Nc6 {[%emt 0:00:08]} 3. Bc4 {[%emt 0:00:25]} Bc5 {[%emt 0:00:17]} 4. d3 {[%emt 0:00:56]} Nf6 {[%emt 0:00:22]} 5. a4 {[%emt 0:02:33]} a6 {[%emt 0:01:47]} 6. O-O {[%emt 0:05:36]} O-O {[%emt 0:00:58]} 7. c3 {[%emt 0:01:03]} d6 {[%emt 0:02:03]} 8. a5 {[%emt 0:02:03] C54: Giuoco Piano: 4 c3 Nf6, main lines with 5 d4 and 5 d3.} h6 {[%emt 0:04:53]} 9. b4 {[%emt 0:26:34]} Ba7 {[%emt 0:00:05]} 10. Be3 {[%emt 0:00:15] The position is equal.} Be6 {[%emt 0:05:39] [#]} 11. Bxe6 $146 {[%emt 0:06:40]} ({Predecessor:} 11. Nbd2 Qe7 12. Qb3 Kh8 13. Bxa7 Rxa7 14. Rfe1 Nh5 15. g3 Raa8 16. Nf1 Qf6 {0-1 (30) Bozilov,D-Dimitrijevic,R (1945) Niska Banja 2004}) 11... fxe6 {[%emt 0:00:06]} 12. Nbd2 {[%emt 0:00:06]} Qe8 {[%emt 0:03:51]} 13. Bxa7 {[%emt 0:10:22]} Rxa7 {[%emt 0:00:07]} 14. d4 {[%emt 0:00:47]} exd4 {[%emt 0:13:16]} 15. Nxd4 {[%emt 0:10:44]} e5 {[%emt 0:06:16]} 16. Nf5 {[%emt 0:00:47]} Kh7 {[%emt 0:04:05]} 17. f3 {[%emt 0:01:56]} Nh5 {[%emt 0:01:38]} 18. Nc4 {[%emt 0:03:20][%cal Bd2c4,Bc4e3,Be3d5][%mdl 32]} Nd8 {[%emt 0:07:47]} 19. Nce3 {[%emt 0:04:38]} Ne6 {[%emt 0:00:14]} 20. Nd5 {[%emt 0:02:25]} Ra8 {[%emt 0:00:53]} 21. Ra2 {[%emt 0:01:06]} Rd8 {[%emt 0:01:12]} 22. g3 {[%emt 0:12:40]} Qf7 {[%emt 0:09:19]} 23. Rg2 {[%emt 0:01:27]} c6 {[%emt 0:11:04]} 24. Nde3 {[%emt 0:00:20]} d5 $1 {[%emt 0:01:17]} 25. Qc2 {[%emt 0:04:59][%cal Of5h6]} g6 {[%emt 0:00:28]} 26. Nh4 {[%emt 0:00:25] Threatens to win with Ng4.} Ng5 {[%emt 0:03:26]} 27. exd5 {[%emt 0:00:40]} cxd5 {[%emt 0:00:23]} 28. Rd2 {[%emt 0:00:37][%cal Od2d5]} Qe6 {[%emt 0:03:02] [#]} (28... Nf6 $11) 29. Qd1 {[%emt 0:00:43]} (29. Nxd5 $1 $14 e4 30. fxe4 Rxf1+ 31. Kxf1) 29... Nf6 $11 {[%emt 0:03:53]} 30. Qc2 {[%emt 0:00:00]} Qe8 {[%emt 0:01:38]} 31. Rfd1 {[%emt 0:00:28][%cal Re3d5]} Qf7 {[%emt 0:03:18]} 32. Re2 {[%emt 0:00:58]} Rd6 $2 {[%emt 0:01:19][%mdl 8192] [#]} (32... Rd7 $11) 33. Rf1 $2 {[%emt 0:00:30]} (33. Nc4 $1 $18 {[%cal Rc4d6][%mdl 512]} Nfe4 (33... dxc4 34. Rxd6) 34. Nxd6 (34. Nxe5 Qe6 $18) 34... Nxd6 35. Rxe5) 33... d4 {[%emt 0:00:36]} 34. cxd4 {[%emt 0:00:10]} ({Wrong is} 34. Nc4 $2 Qxc4 35. Qxg6+ Kh8 36. Qxh6+ Nfh7 37. Qxd6 Qxe2 38. Qxe5+ (38. Ng6+ $2 Kg8 $19) 38... Qxe5 $19) 34... exd4 {[%emt 0:00:02]} 35. Qd3 {[%emt 0:00:36] Strongly threatening Nc4.} Rc8 {[%emt 0:02:21][%cal Bf8c8,Bc8c3,Bc3b3][%mdl 32] [#] Prevents Nc4.} 36. Nef5 $1 {[%emt 0:00:35]} Rd7 {[%emt 0:01:33] [#] ...Rc3 is the strong threat.} 37. Rfe1 $2 {[%emt 0:00:46][%mdl 8192]} Rc3 $19 {[%emt 0:01:59]} ({Don't go for} 37... gxf5 $2 38. Qxf5+ Kg8 39. f4 $19) 38. Qb1 {[%emt 0:00:22]} (38. Nxh6 $142 Kxh6 39. Qd2) 38... Rb3 {[%emt 0:00:14]} 39. Qa2 {[%emt 0:00:41]} gxf5 {[%emt 0:00:19]} 40. Re7 {[%emt 0:00:30]} Rxe7 {[%emt 0:00:26]} 41. Rxe7 {[%emt 0:30:15]} Qxe7 {[%emt 0:30:15] Weighted Error Value: White=0.74/Black=0.28 (precise)} 0-1

[Event "Mitropa Cup Women 2022"]
[Site "Corte"]
[Date "2022.05.07"]
[Round "8.8"]
[White "Vidic, Teja"]
[Black "Gueci, Tea"]
[Result "0-1"]
[ECO "B22"]
[WhiteElo "2168"]
[BlackElo "2248"]
[Annotator "TA"]
[PlyCount "137"]
[EventDate "2022.04.30"]
[EventType "team-tourn"]
[EventCountry "FRA"]
[SourceTitle "playchess.com"]
[Source "ChessBase"]
[SourceQuality "1"]
[WhiteTeam "Slovenia"]
[BlackTeam "Italy"]
[WhiteTeamCountry "SLO"]
[BlackTeamCountry "ITA"]
[TimeControl "40/5400+30:1800+30"]

{[%evp 9,137,23,37,1,1,1,4,12,13,12,24,11,14,27,35,16,26,0,0,-18,-3,-18,-12,-22,-17,-22,-33,-35,-14,-33,-32,-45,-43,-60,-23,-72,-8,-6,-8,-12,-11,-12,0,-103,-94,-125,-120,-114,-116,-160,-125,-125,-121,-116,-108,-125,-112,-112,-110,-127,-97,-144,-96,-93,-95,-115,-115,-120,-130,-155,-63,-246,-256,-247,-247,-240,-249,-276,-273,-275,-268,-251,-255,-278,-254,-291,-271,-258,-237,-237,-175,-190,-178,-406,-406,-397,-379,-508,-500,-519,-478,-674,-672,-650,-648,-610,-486,-1158,-1122,-9077,-5911,-4610,-915,-12845,-12845,-29937,-29937,-29974,-29974,-29970,-29968,-29966,-12354,-29985,-29986,-29986,-29987,-29987,-29988,-29993]} 1. e4 {[%emt 0:00:02]} c5 {[%emt 0:00:04]} 2. c3 {[%emt 0:00:05]} d5 {[%emt 0:00:04]} 3. exd5 {[%emt 0:00:06]} Qxd5 {[%emt 0:00:03]} 4. d4 {[%emt 0:00:10]} Bf5 {[%emt 0:00:05]} 5. Nf3 {[%emt 0:02:09]} Nc6 {[%emt 0:00:08]} 6. Be2 {[%emt 0:00:25] B22: Sicilian: 2 c3.} cxd4 {[%emt 0:00:14]} 7. cxd4 {[%emt 0:00:07]} Bxb1 {[%emt 0:00:05]} 8. Rxb1 {[%emt 0:00:05] The position is equal.} e6 {[%emt 0:00:09]} 9. O-O {[%emt 0:00:27][%cal Ob2b4]} Nf6 {[%emt 0:00:13]} 10. b4 {[%emt 0:02:54][%cal Bb2b4,Bb4b5][%mdl 32] aiming for b5.} Bd6 {[%emt 0:00:57]} 11. b5 {[%emt 0:00:07]} Ne7 {[%emt 0:00:29][%cal Bc6e7,Be7g6,Bg6f4][%mdl 32]} 12. Rb3 {[%emt 0:03:11][%cal Of3e5]} (12. Ne5 $5 {[%cal Re2f3]}) 12... O-O {[%emt 0:04:38] [#]} 13. Re1 $146 {[%emt 0:12:41]} ({Predecessor:} 13. Bb2 Ng6 14. g3 Rfd8 15. Nd2 Bf8 16. Bf3 Qd7 17. Nc4 Rac8 18. Qe2 Nd5 19. Rd1 {1-0 (58) Bryant,J (2417)-Sarkar,J (2389) Calgary 2019}) 13... Ng6 {[%emt 0:10:31]} 14. Bd3 {[%emt 0:07:26]} Nf4 {[%emt 0:09:19]} 15. Bb1 {[%emt 0:04:06]} Qh5 {[%emt 0:09:39]} 16. h3 {[%emt 0:23:03]} Rac8 {[%emt 0:05:17]} 17. Bxf4 {[%emt 0:11:41]} Bxf4 {[%emt 0:00:20]} 18. Qe2 {[%emt 0:01:58]} Rfd8 {[%emt 0:03:51]} 19. g3 {[%emt 0:01:28]} Bc7 {[%emt 0:04:19]} 20. Kg2 {[%emt 0:02:29]} Ba5 {[%emt 0:03:03]} 21. Rd1 {[%emt 0:01:16]} Nd5 {[%emt 0:02:22]} 22. Qd3 {[%emt 0:04:11]} (22. Qb2 $1 $11) 22... Rc3 {[%emt 0:02:14] Black is more active.} (22... Rc7 $17) 23. Rxc3 $11 {[%emt 0:01:23]} Nxc3 {[%emt 0:00:38]} 24. Rc1 {[%emt 0:00:13] Strongly threatening g4.} Nxb1 {[%emt 0:04:32]} (24... Nxb5 $2 25. Rc5 Qh6 26. Rxb5 $18) 25. Qxb1 {[%emt 0:00:14]} Bb6 {[%emt 0:02:54]} 26. Re1 {[%emt 0:05:42]} (26. Qb4 $11 {remains equal.}) 26... Bxd4 $17 {[%emt 0:06:41]} 27. Qe4 {[%emt 0:06:03]} Bb6 {[%emt 0:04:48]} 28. a4 {[%emt 0:00:16]} Qd5 {[%emt 0:03:13]} 29. Qf4 {[%emt 0:00:05]} f6 {[%emt 0:02:27]} 30. Re2 {[%emt 0:01:00]} e5 {[%emt 0:01:13]} 31. Qf5 {[%emt 0:01:11]} Qd7 {[%emt 0:03:38]} 32. Qc2 {[%emt 0:01:16]} Qd3 {[%emt 0:05:43]} 33. Qa2+ {[%emt 0:00:14] [#]} Qd5 $1 {[%emt 0:00:09]} 34. Qc2 {[%emt 0:00:25]} g6 {[%emt 0:01:15]} 35. h4 {[%emt 0:01:47] [#]} (35. Rd2 $142 Bd4 36. Re2) 35... Kg7 {[%emt 0:01:27]} ({Black should try} 35... Ba5 $1 36. Re4 Qe6) 36. Rd2 {[%emt 0:04:49]} Bd4 {[%emt 0:02:31][%cal Oe5e4]} 37. Re2 {[%emt 0:02:56] Inhibits e4.} h5 {[%emt 0:01:08]} 38. Qc7+ {[%emt 0:01:03]} Rd7 {[%emt 0:00:42]} 39. Qc1 {[%emt 0:00:41]} Bb6 {[%emt 0:05:07]} ({Better is} 39... Re7 $17 40. Qc2 Bb6) 40. Qc2 $2 {[%emt 0:00:26] Now White is beyond hope.} (40. Rd2 $15 Bd4 41. Re2) 40... Rc7 $19 {[%emt 0:02:58]} 41. Qa2 {[%emt 0:01:31]} Qxa2 {[%emt 0:05:43]} 42. Rxa2 {[%emt 0:00:06][%mdl 4096] Endgame KRB-KRN} Ba5 {[%emt 0:04:03]} 43. Kf1 {[%emt 0:04:01]} Kf7 {[%emt 0:01:35]} 44. Ke2 {[%emt 0:00:43]} Ke6 {[%emt 0:00:36]} 45. Nd2 {[%emt 0:02:22]} b6 {[%emt 0:02:09]} 46. Rb2 {[%emt 0:03:28]} Bxd2 {[%emt 0:04:33]} 47. Kxd2 {[%emt 0:01:41] KR-KR} Rc4 {[%emt 0:00:39]} 48. Ra2 {[%emt 0:00:09]} Rc5 {[%emt 0:00:31]} 49. Ke3 {[%emt 0:01:02]} g5 {[%emt 0:01:25]} 50. hxg5 {[%emt 0:03:08]} fxg5 {[%emt 0:00:04]} 51. f3 $2 {[%emt 0:00:56]} (51. Ra1 {was worth a try.}) 51... Rc3+ {[%emt 0:01:25]} 52. Ke4 {[%emt 0:00:41]} Rb3 {[%emt 0:00:33]} 53. Ra1 {[%emt 0:07:13]} h4 {[%emt 0:01:17]} 54. gxh4 {[%emt 0:01:26]} gxh4 {[%emt 0:00:05]} 55. Ra2 {[%emt 0:00:27]} (55. a5 $142 Rxb5 56. axb6 axb6 57. Ra8) 55... Rb4+ {[%emt 0:01:05]} 56. Ke3 {[%emt 0:01:05]} Kf5 {[%emt 0:00:21] Hoping for ...h3.} 57. a5 {[%emt 0:01:04]} Rxb5 {[%emt 0:00:54]} 58. axb6 {[%emt 0:00:05]} (58. Ra4 $142 Rb3+ 59. Kf2 Rb2+ 60. Kg1) 58... axb6 {[%emt 0:00:08]} 59. Ra4 {[%emt 0:00:21]} Rb3+ {[%emt 0:01:14]} 60. Kf2 {[%emt 0:00:09]} Rb2+ {[%emt 0:01:08]} 61. Ke3 {[%emt 0:00:26]} h3 {[%emt 0:00:34][%cal Bh4h3,Bh3h2][%mdl 32]} 62. Rh4 {[%emt 0:00:07]} h2 {[%emt 0:00:18]} 63. Rh5+ {[%emt 0:00:42]} Kg6 {[%emt 0:03:53]} 64. Rh8 {[%emt 0:00:09]} b5 {[%emt 0:00:20][%cal Bb6b5,Bb5b4,Bb4b3,Bb3b2][%mdl 32]} 65. Ke4 {[%emt 0:00:34]} b4 {[%emt 0:01:53] ( -> ...b3)} 66. Kxe5 {[%emt 0:00:50]} Re2+ {[%emt 0:00:52] Black mates.} 67. Kd4 {[%emt 0:01:54]} b3 {[%emt 0:00:04]} 68. Kd3 {[%emt 0:00:03] [#]} b2 $1 {[%emt 0:00:30][%mdl 512]} 69. Kd4 {Weighted Error Value: White=0.47/Black=0.12 (very precise)} (69. Kxe2 b1=Q) 0-1

[Event "Mitropa Cup Women 2022"]
[Site "Corte"]
[Date "2022.05.07"]
[Round "8.8"]
[White "Buchholz, Maja"]
[Black "Zhuang, Yongzhe"]
[Result "1-0"]
[ECO "C43"]
[WhiteElo "1945"]
[BlackElo "1701"]
[Annotator "TA"]
[PlyCount "83"]
[EventDate "2022.04.30"]
[EventType "team-tourn"]
[EventCountry "FRA"]
[SourceTitle "playchess.com"]
[Source "ChessBase"]
[SourceQuality "1"]
[WhiteTeam "Germany"]
[BlackTeam "Switzerland"]
[WhiteTeamCountry "GER"]
[BlackTeamCountry "SUI"]
[TimeControl "40/5400+30:1800+30"]

{[%evp 17,83,10,14,14,9,0,10,23,23,22,26,19,25,18,26,21,17,30,50,35,44,49,84,56,120,121,120,126,177,187,181,166,397,357,387,374,478,475,653,577,860,856,847,834,781,781,789,747,2498,2654,2914,2533,29975,29976,29948,10991,29986,29987,29987,29988,29986,29987,29987,29988,29988,29988,29989,29989]} 1. e4 {[%emt 0:00:03]} e5 {[%emt 0:00:16]} 2. Nf3 {[%emt 0:00:05]} Nf6 {[%emt 0:00:17]} 3. d4 {[%emt 0:00:23]} Nxe4 {[%emt 0:01:56]} 4. Bd3 {[%emt 0:00:27]} d5 {[%emt 0:01:05]} 5. Nxe5 {[%emt 0:00:19]} Nd7 {[%emt 0:00:51]} 6. Nxd7 {[%emt 0:00:16]} Bxd7 {[%emt 0:00:24]} 7. O-O {[%emt 0:00:18]} Bd6 {[%emt 0:11:04]} 8. Nc3 {[%emt 0:00:41]} Nxc3 {[%emt 0:06:00]} 9. bxc3 {[%emt 0:00:11]} O-O {[%emt 0:00:36]} 10. Qh5 {[%emt 0:00:51][%csl Gd3,LRd5,LRh7][%cal Rh5h7] Prevents Qh4. C43: Petroff Defence: 3 d4.} f5 {[%emt 0:07:09]} 11. Re1 {[%emt 0:00:26]} Qf6 {[%emt 0:04:11]} (11... g6 $5 {[%cal Rg6h5]} 12. Qf3 Bc6 $11) 12. Qf3 {[%emt 0:00:23] The position is equal.} Bc6 {[%emt 0:06:58]} 13. Bf4 {[%emt 0:02:22]} g6 {[%emt 0:19:05]} 14. Be5 {[%emt 0:11:21]} Bxe5 {[%emt 0:01:17]} 15. Rxe5 {[%emt 0:00:20]} Rae8 {[%emt 0:00:57]} 16. Rae1 {[%emt 0:01:00][%cal Ba1e1,Be1e5,Be5e6][%mdl 32] Hoping for Rxe8.} Rxe5 {[%emt 0:00:47]} 17. Rxe5 {[%emt 0:00:42] [#]} Qg5 $146 {[%emt 0:04:32]} ({Predecessor:} 17... Qf7 18. h4 Re8 19. Qf4 Rxe5 20. Qxe5 h5 21. Kh2 Kf8 22. Kh3 Qe7 23. Qh8+ Kf7 {½-½ (49) Zawadzka,J (2400)-Zatonskih,A (2420) Wroclaw 2019}) 18. h3 {[%emt 0:14:19]} Qc1+ {[%emt 0:02:38]} 19. Kh2 {[%emt 0:00:12]} Qa3 {[%emt 0:02:12]} 20. Qe3 {[%emt 0:04:42] Black is now going downhill.} f4 {[%emt 0:02:25]} (20... Qxa2 $2 21. Re7 Rf6 22. Qe5 $18) ({Black should play} 20... Qd6 $14) 21. Qe1 $16 {[%emt 0:01:10]} Qd6 {[%emt 0:06:01]} (21... Qxa2 $2 22. Re7 Be8 23. Rxe8 $18) 22. Re6 {[%emt 0:06:23]} Qd7 {[%emt 0:00:37] [#]} (22... Qd8 $16 {is a better defense.}) 23. Qe5 $1 $18 {[%emt 0:02:40] And now Re7 would win.} Qg7 {[%emt 0:02:22] [#]} 24. Qg5 $40 {[%emt 0:03:49][%mdl 128] White is out for blood.} Re8 $2 {[%emt 0:04:19]} (24... Kh8 25. f3 Qf7) 25. Rxe8+ {[%emt 0:01:55]} Bxe8 {[%emt 0:00:39]} 26. Qxd5+ {[%emt 0:02:16][%mdl 4096] Endgame KQB-KQB} Bf7 {[%emt 0:02:38]} 27. Qxb7 {[%emt 0:01:27]} Qf6 {[%emt 0:01:07]} 28. Qxc7 {[%emt 0:03:53]} f3 {[%emt 0:00:28]} 29. Bc4 {[%emt 0:00:04]} Bxc4 30. Qxc4+ {KQ-KQ} Kg7 {[%emt 0:00:43]} 31. Qc7+ {[%emt 0:00:52]} Kh6 {[%emt 0:00:27]} 32. g4 {aiming for Kg3.} g5 {[%emt 0:03:14]} 33. Qe5 {[%emt 0:03:46][%cal Re5f6]} Qf8 {[%emt 0:01:48]} 34. Kg3 {Black must now prevent d5.} Qd8 {[%emt 0:00:38]} 35. d5 {[%emt 0:02:31][%cal Bd4d5,Bd5d6][%mdl 32]} Kg6 36. d6 {Intending c4 and mate.} Qb8 {[%emt 0:00:53]} 37. Qf5+ {[%emt 0:01:53] White mates.} Kg7 {[%emt 0:00:18]} 38. Qxg5+ Kf7 39. Qe7+ {[%emt 0:00:58]} Kg6 {[%emt 0:00:42]} 40. h4 {[%emt 0:00:24]} h5 {[%emt 0:00:18]} 41. Qg5+ {[%emt 0:30:51]} Kf7 {[%emt 0:30:12]} 42. Qxh5+ {[%emt 0:00:09] Weighted Error Value: White=0.10 (very precise) /Black=0.75} 1-0